Cogmind - Beta 16 @@@ ROGUE MODE // 2026.01.21 @ 22:44:18 Player: willy Result: Destroyed by G-34 Mercenary with Small Laser Performance ------------- Evolutions (1) 500 Regions Visited (3) 600 Robots Destroyed (10) 50 Value Destroyed (154) 154 Prototype IDs (0) 0 Alien Tech Used (0) 0 Bonus (0) 0 TOTAL SCORE: 1304 Bonus ------- None Cogmind --------- Core Integrity 0/400 Matter 300/300 Energy 100/100 System Corruption 0% Temperature Cool (6) Movement Core (400) Ox7 Location -9/Mines Parts ------- > --- POWER (2) -------- (None) > --- PROPULSION (3) --- (None) > --- UTILITY (2) ------ Large Storage Unit Hacking Suite > --- WEAPON (2) ------- Mace > --- INVENTORY (15) --- Light Ion Engine Small Storage Unit Peak State ------------ > --- POWER ------------ Ion Engine > --- PROPULSION ------- Light Treads Light Treads Aluminum Leg > --- UTILITY ---------- Large Storage Unit Hacking Suite > --- WEAPON ----------- Light EM Pulse Cannon Mace > --- INVENTORY -------- Light Ion Engine Small Storage Unit [Rating: 12] Favorites ----------- Power Ion Engine Engine Ion Engine Propulsion Light Treads Treads Light Treads Leg Aluminum Leg Utility Large Storage Unit Device Seismic Detector Storage Large Storage Unit Hackware Hacking Suite Weapon Light Assault Rifle Energy Gun Medium Laser Energy Cannon Light EM Pulse Cannon Ballistic Gun Light Assault Rifle Impact Weapon Mace Build | -11 -10 -9 -9 ------- Run | Yrd Mat Mat Min Slots Evolved 2 | . . 2 . Power 1 | . . 1 . Propulsion 1 | . . 1 . Utility . | . . . . Weapon . | . . . . Parts Attached 13 | 6 3 4 . Power 2 | 1 1 . . Engine 2 | 1 1 . . Core . | . . . . Reactor . | . . . . Propulsion 3 | 2 . 1 . Treads 2 | 2 . . . Leg 1 | . . 1 . Wheel . | . . . . Hover . | . . . . Flight . | . . . . Utility 4 | 1 2 1 . Device 1 | . 1 . . Storage 2 | 1 1 . . Processor . | . . . . Hackware 1 | . . 1 . Protection . | . . . . Artifact . | . . . . Weapon 4 | 2 . 2 . Energy Gun 1 | 1 . . . Energy Cannon 1 | . . 1 . Ballistic Gun 1 | 1 . . . Ballistic Cannon . | . . . . Launcher . | . . . . Special Weapon . | . . . . Impact Weapon 1 | . . 1 . Slashing Weapon . | . . . . Piercing Weapon . | . . . . Special Melee Weapon . | . . . . Unidentified Prototypes . | . . . . Parts Lost 6 | . . 3 3 Power 1 | . . 1 . Propulsion 3 | . . 1 2 Utility 1 | . . 1 . Weapon 1 | . . . 1 Highest Loss Streak 3 | . . 2 3 To Critical Strikes . | . . . . Average Backups 1 | . 1 2 2 Power . | . . 1 1 Propulsion . | . . . . Utility . | . . 1 1 Weapon . | . . . . Tool/Special . | . . . . Unused Backups . | . . . . Power . | . . . . Propulsion . | . . . . Utility . | . . . . Weapon . | . . . . Tool/Special . | . . . . Average Slot Usage (%) 85 | . 97 79 44 Engine 11 | . 14 9 . Treads 23 | . 28 22 6 Leg 2 | . . 6 . Device 8 | . 11 6 . Storage 12 | . 14 11 11 Hackware 1 | . . 1 11 Energy Gun 6 | . 14 . . Energy Cannon 2 | . . 5 4 Ballistic Gun 9 | . 14 5 . Impact Weapon 5 | . . 10 11 Peak Build Rating 12 | 6 7 12 10 Average Rating 7 | 4 6 8 6 On Entrance 5 | . 6 7 10 Avg Prop Armor Cover (%) 6 | . . 6 . Naked Turns . | . . . . Heaviest Build 32 | 11 29 32 22 Greatest Support 40 | 40 40 40 3 Greatest Overweight (x) 7 | . . . 7 Average Overweight (x) . | . . . 7 Largest Inventory Capacity 15 | 8 15 15 15 Average Capacity 12 | 6 12 15 15 Most Carried 2 | . 2 2 2 Average Carried 1 | . 1 2 2 Final Capacity 15 | 8 15 15 15 Final Carried 2 | . 2 2 2 Class Distribution -------------------- 100% | Mutant Dominant Class ---------------- Mutant | -10/Materials Mutant | -9/Materials Mutant | -9/Mines Resources | -11 -10 -9 -9 ----------- Run | Yrd Mat Mat Min Matter Collected 328 | 204 67 57 . Remotely . | . . . . Salvage Created 191 | . 82 109 . Parts 17 | . 9 8 . Haulers Intercepted . | . . . . Recyclers Shooed . | . . . . Parts Field Recycled . | . . . . Retrieved Matter . | . . . . Parts Self-Destructed . | . . . . Prevented . | . . . . Parts Restored . | . . . . Kills | -11 -10 -9 -9 ------- Run | Yrd Mat Mat Min Combat Hostiles Destroyed 9 | . 4 5 . Melee 3 | . . 3 . Guns 4 | . 4 . . AOE 2 | . . 2 . Classes Destroyed 3 | . 2 1 . Operator 1 | . . 1 . Swarmer 7 | . 3 4 . Grunt 2 | . 1 1 . Best Kill Streak 3 | . 3 2 . Combat Bots Only 3 | . 3 2 . Max Kills in Single Turn 2 | . 1 2 . Gunslinging . | . . . . Exploded 2 | . . 2 . Melee 1 | . . 1 . Uniques/NPCs Destroyed . | . . . . Combat | -11 -10 -9 -9 -------- Run | Yrd Mat Mat Min Hostile Shots Fired 162 | . 21 76 65 Missed 41 | . 3 25 13 Hits 121 | . 18 51 52 Projectile 121 | . 18 51 52 Critical Strikes 1 | . . . 1 Damage Taken 1215 | . 150 428 637 Core 416 | . 15 76 325 Absorbed by Shields . | . . . . Core Remaining (%) 97 | 100 94 . . Volleys Fired 25 | . 13 12 . Largest 2 | . 2 1 . Hottest 70 | . 70 56 . Shots Fired 39 | . 27 12 . Gun 27 | . 27 . . Cannon 12 | . . 12 . Launcher . | . . . . Special . | . . . . Kinetic 14 | . 14 . . Thermal 13 | . 13 . . Explosive . | . . . . Electromagnetic 12 | . . 12 . Robot Hit Streak 3 | . 3 2 . Robot Miss Streak 5 | . 4 5 . Penetration Max . | . . . . Secondary Targets 2 | . 2 . . Max Gunslinging Chain 1 | . 1 . . Shots Hit Robots 19 | . 11 8 . Core Hits 12 | . 8 4 . Critical Kills . | . . . . Critical Parts Destroyed 1 | . . 1 . Critical Strikes 1 | . . 1 . Smash 1 | . . 1 . Melee Attacks 9 | . . 9 . Impact 9 | . . 9 . Slashing . | . . . . Piercing . | . . . . Sneak Attacks . | . . . . Combat Hostiles . | . . . . Follow-up Attacks . | . . . . Damage Inflicted 410 | . 147 263 . Guns 139 | . 139 . . Cannons 87 | . . 87 . Explosions 39 | . . 39 . Melee 137 | . . 137 . Ramming 8 | . 8 . . Kinetic 53 | . 53 . . Thermal 125 | . 86 39 . Explosive . | . . . . Electromagnetic 87 | . . 87 . Impact 137 | . . 137 . Slashing . | . . . . Piercing . | . . . . Highest Corruption 3 | . 3 . . Average Corruption 2 | . 2 . . Corruption Purged . | . . . . Corruption Blocked . | . . . . Effects 6 | . 6 . . Message Errors 1 | . 1 . . Heat Flow Errors 2 | . 2 . . Energy Discharges 1 | . 1 . . Data Loss (minor) 1 | . 1 . . Misfires 1 | . 1 . . Overload Shots . | . . . . Overflow Damage 70 | . . 70 . Projectiles 37 | . . 37 . Explosions . | . . . . Melee 33 | . . 33 . Knockbacks . | . . . . Impact . | . . . . Kinetic . | . . . . Secondary . | . . . . Self-Inflicted Damage 9 | . . 9 . Shots 1 | . . 1 . Rammed 3 | . 3 . . Targets Rammed 3 | . 3 . . Kicked . | . . . . Crushed . | . . . . Highest Temperature 204 | . 204 52 5 Average Temperature 46 | . 57 14 5 Received Heat Transfer 396 | . 12 6 378 Siege Activations . | . . . . Martial Activations . | . . . . Shielding Activations . | . . . . Robots Disrupted . | . . . . Combat Hostiles . | . . . . Robots Corrupted . | . . . . Combat Hostiles . | . . . . Parts Fried 2 | . . 2 . Impact Corruptions 2 | . . 2 . Robots Melted . | . . . . Combat Hostiles . | . . . . Parts Melted 1 | . 1 . . Heat Transferred 359 | . 259 100 . Parts Sabotaged . | . . . . Parts Stolen . | . . . . Parts Stripped . | . . . . Power Chain Reactions 1 | . . 1 . Alert | -11 -10 -9 -9 ------- Run | Yrd Mat Mat Min Maximum Alert Level . | . . . . Low Security (%) 100 | 100 100 100 100 Level 1 . | . . . . Level 2 . | . . . . Level 3 . | . . . . Level 4 . | . . . . Level 5 . | . . . . High Security . | . . . . Max Security . | . . . . Peak Influence 60 | . 60 53 . Initial 4 | . . 4 . Average 11 | . 13 16 . Influence Increases 260 | . 102 158 . Destroy 0b10 Robot/C 180 | . 80 100 . Destroy 0b10 Robot/NC 5 | . . 5 . Destroy Leader 40 | . 20 20 . Successful Hack 2 | . 2 . . Destroy Structure 3 | . . 3 . Lose Combat Pursuer 30 | . . 30 . Influence Decreases 260 | . 90 168 2 Entered New Map 10 | . . 8 2 Time Decay 222 | . 90 132 . Lost Part 28 | . . 28 . Squads Dispatched 1 | . 1 . . Investigation 1 | . 1 . . Extermination . | . . . . Reinforcement . | . . . . Assault . | . . . . Garrison . | . . . . Intercept . | . . . . Searches Triggered . | . . . . Construction Impeded . | . . . . Haulers Reinforced . | . . . . Active Scanning Responses . | . . . . Cargo Convoy Interrupts . | . . . . Stealth | -11 -10 -9 -9 --------- Run | Yrd Mat Mat Min Distress Signals 1 | . . 1 . Communications Jammed . | . . . . Distress Signals . | . . . . Times Spotted 21 | . 6 12 3 Peak Tracking Total 4 | . 4 4 3 Tactical Retreats 1 | . . 1 . Traps | -11 -10 -9 -9 ------- Run | Yrd Mat Mat Min Traps Triggered 3 | . 3 . . Indirectly . | . . . . Trap Hack Attempts . | . . . . Triggered . | . . . . Disarmed . | . . . . Reprogrammed . | . . . . Reused . | . . . . Traps Extracted . | . . . . Installed . | . . . . Triggered . | . . . . Machines | -11 -10 -9 -9 ---------- Run | Yrd Mat Mat Min Machines Disabled . | . . . . Max in Single Turn . | . . . . Machines Repaired . | . . . . Machines Dismantled . | . . . . Machines Sabotaged . | . . . . Overloaded Fab Kills . | . . . . Hacking | -11 -10 -9 -9 --------- Run | Yrd Mat Mat Min Machines Accessed 3 | . 2 1 . Terminals 3 | . 2 1 . Fabricators . | . . . . Repair Stations . | . . . . Recycling Units . | . . . . Scanalyzers . | . . . . Garrison Access . | . . . . Total Hacks 4 | . 3 1 . Successful 4 | . 3 1 . Failed . | . . . . Catastrophic . | . . . . Database Lockouts . | . . . . Manual 1 | . . 1 . Terminals 4 | . 3 1 . Fabricators . | . . . . Repair Stations . | . . . . Recycling Units . | . . . . Scanalyzers . | . . . . Garrison Access . | . . . . Terminal Hacks 4 | . 3 1 . Record 2 | . 1 1 . Emergency Access Points 1 | . 1 . . Alert Level 1 | . 1 . . Fabricator Hacks . | . . . . Repair Station Hacks . | . . . . Recycling Unit Hacks . | . . . . Scanalyzer . | . . . . Garrison Access Hacks . | . . . . Unauthorized Hacks . | . . . . Terminals . | . . . . Fabricators . | . . . . Repair Stations . | . . . . Recycling Units . | . . . . Scanalyzers . | . . . . Garrison Access . | . . . . Data Cores Recovered 1 | . . 1 . Used . | . . . . Hacking Detections 2 | . 1 1 . Full Trace Events . | . . . . Feedback Events . | . . . . Feedback Blocked . | . . . . Robot Schematics Acquired . | . . . . Robots Built . | . . . . Authchips . | . . . . Time . | . . . . Total Robot Build Rating . | . . . . Part Schematics Acquired . | . . . . Parts Built . | . . . . Authchips . | . . . . Time . | . . . . Total Part Build Rating . | . . . . Part Studies Acquired . | . . . . Parts Repaired . | . . . . Time . | . . . . Parts Recycled . | . . . . Recycled Matter . | . . . . Retrieved Matter . | . . . . Retrieved Components . | . . . . Parts Scanalyzed . | . . . . Part Schematics Acquired . | . . . . Parts Damaged . | . . . . Bothacking | -11 -10 -9 -9 ------------ Run | Yrd Mat Mat Min Used RIF Installer . | . . . . Robots Hacked . | . . . . Non-combat . | . . . . Combat . | . . . . Robot Hacks Applied . | . . . . Relay Couplers Released . | . . . . Fabnet Peak Effective % . | . . . . Robots Rewired . | . . . . Allies Hacked . | . . . . Hacks Repelled . | . . . . Allies | -11 -10 -9 -9 -------- Run | Yrd Mat Mat Min Total Allies . | . . . . Largest Group . | . . . . Highest-Rated Group . | . . . . Highest-Rated Ally . | . . . . Total Orders . | . . . . Ally Attacks . | . . . . Total Damage . | . . . . Kills . | . . . . Allies Corrupted . | . . . . Allies Melted . | . . . . Intel | -11 -10 -9 -9 ------- Run | Yrd Mat Mat Min Active Infowar (turns) 510 | . 275 235 . Seismic 510 | . 275 235 . Robot Analysis Total . | . . . . Derelict Logs Recovered . | . . . . Drone Launches . | . . . . Drone Recoveries . | . . . . Exploration | -11 -10 -9 -9 ------------- Run | Yrd Mat Mat Min Turns Passed 1017 | 171 400 401 45 Spaces Moved 479 | 105 188 182 4 Core 9 | 5 . . 4 Treads 470 | 100 188 182 . Legs . | . . . . Wheels . | . . . . Hover . | . . . . Flight . | . . . . Fastest Speed 50 | 50 160 160 400 Average Speed 160 | 154 160 160 400 Slowest Speed 400 | 160 160 160 400 Overloaded Moves . | . . . . Propulsion Burnouts . | . . . . Robots Hopped . | . . . . Potential Cave-ins . | . . . . Cave-ins Triggered . | . . . . Exploration Rate (%) 18 | 7 35 26 4 Regions Visited 3 Branch Regions 1 Pre-discovered Areas . | . . . . Known Exits Taken . | . . . . Unknown Exits Taken 3 | 1 1 1 . Scrap Searched . | . . . . Spaces Dug . | . . . . Terrain Destroyed 3 | . . 3 . Melee . | . . . . Projectile . | . . . . AOE 3 | . . 3 . Terrain Rammed . | . . . . Walls Destroyed . | . . . . Machines Disabled . | . . . . Actions | -11 -10 -9 -9 --------- Run | Yrd Mat Mat Min Total 667 | 111 261 262 33 Wait 141 | 1 55 56 29 Move 476 | 104 187 181 4 Hop . | . . . . Pick Up . | . . . . Fast Attach 9 | 6 1 2 . Attach . | . . . . Detach . | . . . . Swap 4 | . 2 2 . Drop . | . . . . Fire 25 | . 13 12 . Melee 9 | . . 9 . Ram . | . . . . Kick . | . . . . Crush 3 | . 3 . . Escape Stasis . | . . . . Rewire . | . . . . Trap . | . . . . Miscellaneous . | . . . . Route ------- -11/Scrapyard -10/Materials -9/Materials -9/Mines History --------- Turn | Location | Event 43 | -11/Scrapyard | Discovered new exit (range 15) 172 | -11/Scrapyard | Entered Materials 318 | -10/Materials | Build established: Mutant 548 | -10/Materials | Discovered new exit (range 16) 572 | -10/Materials | Entered another Materials area 572 | -9/Materials | Evolved 2 slots: Power x1, Propulsion x1 963 | -9/Materials | Discovered new exit (range 7) 973 | -9/Materials | Entered Mines 995 | -9/Mines | Core integrity fell below 50% 998 | -9/Mines | Met a Derelict bent on vengeance 1005 | -9/Mines | Core integrity fell below 20% 1012 | -9/Mines | Lost 3 parts (2n1w) 1018 | -9/Mines | Destroyed by G-34 Mercenary with Small Laser Last Messages --------------- U-05 Engineer lays Concrete. K-01 Serf collects debris. U-05 Engineer lays Concrete. K-01 Serf collects debris. U-05 Engineer lays Concrete. K-01 Serf collects debris. U-05 Engineer lays Concrete. K-01 Serf collects debris. U-05 Engineer lays Concrete. LOCATION=UNKNOWN GOAL=ESCAPE Something is scanning the area. T-07 Excavator is excavating. Lgt. Treads destroyed. T-07 Excavator is excavating. Lgt. Treads destroyed. T-07 Excavator is excavating. Lgt. EM Pulse Cannon destroyed. T-07 Excavator is excavating. Critical hit (Burn: +37). Map ----- +----------------------------------------------------+ | ?????????????????????????????????????????????? | | ?????????????????????????????????????????????? | | ?????????????????????????????????????????????? | | ?????????????????????????????????????????????? | | ?????????????????????????????????????????????? | | ?????????????????????????????????????????????? | | ?????????????????????????????????????????????? | | ?????????????????????????????????????????????? | | ?????????????????????????????????????????????? | | ?????????????????????????????????????????????? | | ?????????????????????????????????????????????? | | ?????????????????????????????????????????????? | | ?????????????????????????????????????????????? | | ?????????????????????????????????????????????? | | ?????????????????????????????????????????????? | | ???????????????????????##????????????????????? | | ???????????????????????# ????????????????????? | | ???????????????????????# ????????????????????? | | ???????????????????????# ????????????????????? | | ???????????????????##### #####??????#????????? | | ???????????????????# g##### #????????? | | ???????????????????# #?????????? | | ???????????????????# #?????????? | | ???????????????????# g #######?????????? | | ???????????????????# """ g#???????????????? | | ???????????????????# """ @ #???????????????? | | ???????????????????# """ #???????????????? | | ???????????????????###########???????????????? | | ?????????????????????????????????????????????? | | ?????????????????????????????????????????????? | | ?????????????????????????????????????????????? | | | | | | | | | | | | | | | | | | | | | | | | | | | | | | | | | | | | | | | +----------------------------------------------------+ Best States ------------- Heat Dissipation 28 Energy Generation 10 Energy Capacity 250 Matter Stores 300 Matter Capacity 300 Sight Range 16 Terrain Scan Density 10 Evasion (%) 40 Recoil Reduction 2 Offensive Hacking 10 Item Schematics ----------------- None Robot Schematics ------------------ None Fabricated ------------ Nothing Repaired ---------- Nothing Studied --------- None Alien Tech Used ----------------- None Achievements -------------- DATA ERROR: Steam Global Achievement% For Emergencies Only Overwhelming Challenges ------------ None Game ------ Seed ShadeGravjetFlail Manual? 0 Play Time 00:22:19 Cumulative 8.8 hours Start 2026.01.19 @ 19:18:55 End 2026.01.21 @ 22:44:18 Sessions 2 Manual Loads 0 Difficulty Rogue Special Mode None Game No. 7 Rogue 6 Adventurer 1 Explorer 0 Win Type - Total 0 Types 0/0/0/0/0/0/0/0/0/0 Lore% 3 Gallery% 12 Achievement% 6 Wizard Run 0 Options --------- Layout 0 ASCII 0 Keyboard 0 Movement Numpad Keybinds 0 Fullscreen 1 Font 18/SmallcapsGlow Map View 76x50 Zoom Use 0% Tactical HUD 0 Map Filters NONE Filters NONE Steam 1 RUN: 00e0606c-f662-4dc4-859b-075960da5f20